bitfinex/quotes_ETHUSD_20241119
["timestamp","ask_amount","ask_price","bid_price","bid_amount"]
[1731976127923,3.13847,3186.3,3185.9,0.3139]
[1731976128085,3.13851,3186.3,3185.9,0.3139]
[1731976128417,3.13864,3186.1,3185.9,0.3139]
[1731976129379,3.13864,3186.1,3186.0,0.3139]
[1731976129583,3.766347,3186.1,3186.0,0.3139]
[1731976130292,3.766347,3186.1,3185.6,0.3139]
[1731976130500,3.13881,3186.0,3185.6,0.3139]
[1731976130995,0.627707,3186.1,3185.6,0.3139]
[1731976131364,3.13846,3186.3,3185.6,0.3139]
[1731976131477,3.13827,3186.5,3185.9,0.3139]
[1731976131680,3.0,3186.6,3185.9,0.3139]
[1731976131908,3.13834,3186.4,3185.9,0.3139]
[1731976132330,3.13834,3186.4,3185.8,3.13892]
[1731976132331,3.13834,3186.4,3186.1,0.3139]
[1731976132685,1.1223,3186.3,3185.7,0.06277338]
[1731976132882,1.1223,3186.3,3184.0,0.63360517]
[1731976132883,1.6723,3184.9,3184.0,0.63360517]
[1731976133084,1.6723,3184.9,3183.0,0.06282035]
[1731976133085,3.14091,3183.8,3183.0,0.06282035]
[1731976133398,3.6340816,3184.1,3182.9,0.861]
[1731976133725,3.2179923,3184.0,3183.0,3.14168]
[1731976133932,3.14091,3183.8,3183.0,3.855935]
[1731976134097,3.14071,3184.0,3183.2,3.14148]
[1731976134299,3.14071,3184.0,3183.1,0.06282692]
[1731976134300,3.14082,3183.9,3183.1,3.14158]
[1731976134641,3.14078,3184.0,3183.2,3.1414]
[1731976134783,3.14082,3183.9,3183.2,0.3139]
[1731976136020,3.14103,3183.7,3183.2,0.3139]
[1731976136315,3.6340816,3184.1,3182.9,0.861]
[1731976136316,3.14141,3183.3,3182.9,0.861]
[1731976137361,3.1413,3183.4,3182.9,0.861]
[1731976138060,3.14114,3183.6,3182.9,4.00275]
[1731976138221,3.6340816,3183.7,3183.0,0.06271793]
[1731976138413,3.6340816,3183.7,3182.9,4.06546793]
[1731976138751,3.1409,3183.8,3183.0,3.57959679]
[1731976138957,3.14092,3183.8,3183.1,3.14157]
[1731976139133,3.52441846,3184.0,3183.1,0.3139]
[1731976139463,3.1409,3183.8,3182.9,0.861]
[1731976139757,3.141,3183.7,3182.9,0.861]
[1731976139913,3.85665001,3183.9,3182.9,0.861]
[1731976140108,3.85665001,3183.9,3182.9,4.31666]
[1731976140309,3.85665001,3183.9,3183.1,3.14158]
[1731976140508,0.71585001,3183.9,3182.9,4.75460857]
[1731976140759,3.14105,3183.7,3182.9,4.75460857]
[1731976141466,3.14113,3183.6,3182.9,4.75460857]
[1731976142126,3.14101,3183.7,3182.9,1.61284857]
[1731976142333,3.14097,3183.8,3183.0,0.47547286]
[1731976142673,3.14052,3184.2,3183.5,3.14116]
[1731976142832,3.14052,3184.2,3183.6,0.3139]
[1731976143747,7.8643016,3184.5,3183.7,3.14099]
[1731976143748,3.14033,3184.4,3183.7,3.14099]
[1731976144071,3.6340816,3184.5,3183.6,0.37671724]
[1731976144072,3.14022,3184.5,3183.6,0.3139]
[1731976144356,3.76911127,3184.8,3183.9,0.861]
[1731976144568,3.45531127,3184.8,3184.0,3.45457]
[1731976144722,0.31532127,3184.8,3184.2,0.3139]
[1731976145214,3.45525127,3184.8,3184.2,0.3139]
[1731976145418,3.13993,3184.8,3184.2,0.3139]
[1731976145855,3.2170423,3185.0,3184.3,3.4543]
[1731976146156,3.6340816,3185.1,3184.5,0.3139]
[1731976146417,3.13943,3185.3,3184.5,0.3139]
[1731976146927,3.13943,3185.3,3184.7,0.3139]
[1731976147131,3.6340816,3185.5,3184.7,0.66557913]
[1731976147481,6.7733416,3185.5,3184.9,0.3139]
[1731976147973,3.6340816,3185.5,3184.9,0.3139]
[1731976148150,3.13949,3185.3,3184.9,0.3139]
[1731976148473,3.13964,3185.1,3184.9,0.3139]
[1731976148769,3.13989,3184.9,3184.6,0.3139]
[1731976148970,3.2169923,3185.0,3184.6,0.3139]
[1731976149587,3.13982,3184.9,3184.6,0.3139]
[1731976149871,3.13991,3184.8,3184.6,0.3139]
[1731976150075,0.0772823,3185.0,3184.6,0.3139]
[1731976150273,3.14001,3184.7,3184.6,0.3139]
[1731976150601,3.13989,3184.9,3184.6,0.3139]
[1731976150754,3.13963,3185.1,3184.6,0.3139]
[1731976150950,3.0,3185.2,3184.6,0.3139]
[1731976151156,6.7733216,3185.5,3184.6,3.79933]
[1731976151454,3.13924,3185.5,3184.8,3.4538]
[1731976151787,3.13933,3185.4,3184.8,0.3139]
[1731976151933,3.13933,3185.4,3185.0,0.3139]
[1731976152136,3.77317771,3185.7,3185.0,0.3139]
[1731976152436,3.13913,3185.6,3185.0,0.3139]
[1731976152983,3.13894,3185.8,3185.3,0.3139]
[1731976153782,3.03894,3185.8,3185.3,0.3139]
[1731976154234,3.13853,3186.2,3185.6,0.3139]
[1731976154434,3.6340816,3186.3,3185.6,0.37667734]
[1731976154435,0.32720429,3186.3,3185.6,0.37667734]
[1731976154646,3.13834,3186.4,3185.9,0.3139]
[1731976155088,3.13873,3186.0,3185.9,0.3139]
[1731976155234,3.13873,3186.0,3185.6,0.3139]
[1731976155433,0.0772823,3186.1,3185.6,0.3139]
[1731976155634,1.1951823,3186.1,3185.6,0.3139]
[1731976155847,3.13902,3185.7,3185.6,0.3139]
[1731976156287,4.13794839,3185.7,3185.6,0.3139]
[1731976156992,4.68794839,3185.7,3185.6,0.3139]
[1731976157293,4.13794839,3185.7,3185.6,0.3139]
[1731976158141,3.6340816,3185.9,3185.6,0.3139]
[1731976158345,3.0,3186.2,3185.6,0.3139]
[1731976158592,3.0,3186.0,3185.6,0.3139]
[1731976158883,3.13867,3186.1,3185.6,0.3139]
[1731976159288,3.6340816,3186.3,3185.6,0.3139]
[1731976159497,4.11447976,3186.3,3185.6,0.3139]
[1731976159645,3.13877,3186.0,3185.6,0.3139]
[1731976160363,3.13894,3185.8,3185.6,0.3139]
[1731976161009,3.13893,3185.8,3185.6,0.3139]
[1731976161165,3.6340816,3186.3,3185.6,0.3139]
[1731976161365,3.13863,3186.1,3185.8,0.3139]
[1731976162911,3.13755,3187.2,3186.6,3.13813]
[1731976163077,4.30562,3187.4,3186.8,0.3139]
[1731976163078,3.13742,3187.4,3186.8,0.3139]
[1731976163460,3.08742,3187.4,3186.8,0.3139]
[1731976164111,3.08742,3187.4,3186.7,0.3139]
[1731976164267,3.08742,3187.4,3186.7,3.45193]
[1731976164721,0.63306993,3187.5,3186.7,3.45193]
[1731976164870,3.13746,3187.3,3186.7,0.3139]
[1731976165071,1.49032208,3187.5,3186.6,0.3139]
[1731976165289,3.13779,3187.0,3186.6,0.3139]
[1731976166135,0.0772823,3186.9,3186.7,0.3139]
[1731976166299,3.13794,3186.8,3186.4,0.4576]
[1731976166500,3.13823,3186.5,3186.4,0.3139]
[1731976167227,3.13823,3186.5,3185.4,3.1393]
[1731976167228,3.13833,3186.4,3185.9,0.3139]
[1731976167397,3.13865,3186.1,3185.9,0.3139]
[1731976168134,3.13865,3186.1,3185.6,0.3139]
[1731976168312,0.0772823,3186.0,3185.6,0.3139]
[1731976168487,1.1085,3186.3,3185.6,0.3139]
[1731976168488,3.13883,3185.9,3185.6,0.3139]
[1731976169133,3.13893,3185.8,3185.6,0.3139]
[1731976169310,3.1389,3185.9,3185.6,0.3139]
[1731976169626,3.13894,3185.8,3185.2,0.3139]
[1731976169931,1.1085,3186.3,3185.2,0.3139]
[1731976169932,0.0772823,3185.7,3185.2,0.3139]
[1731976170097,3.13923,3185.5,3185.2,0.3139]
[1731976170625,3.13923,3185.5,3184.9,0.3139]
[1731976170830,1.1549,3185.4,3184.9,0.3139]
[1731976171031,3.13965,3185.1,3184.9,0.3139]
[1731976171714,3.13965,3185.1,3184.5,0.3139]
[1731976172330,3.13965,3185.1,3184.5,3.45409]
[1731976172502,3.13965,3185.1,3184.7,0.3139]
[1731976172712,1.1549,3185.4,3184.7,0.3139]
[1731976172915,3.13978,3185.0,3184.7,0.3139]
[1731976173331,3.13932,3185.4,3184.7,0.3139]
[1731976173638,3.1483,3186.5,3184.7,0.3139]
[1731976173639,3.13888,3185.9,3185.3,0.3139]
[1731976173861,1.73983537,3186.1,3185.3,0.19882164]
[1731976174145,3.13884,3185.9,3185.2,0.3139]
[1731976174304,3.13884,3185.9,3185.2,0.67234991]
[1731976174507,3.13894,3185.8,3185.2,0.67234991]
[1731976176225,1.1146,3186.1,3185.3,0.3139]
[1731976176498,3.13932,3185.4,3185.3,0.3139]
[1731976177198,3.13932,3185.4,3184.8,0.3139]
[1731976177800,3.13959,3185.2,3184.8,0.3139]
[1731976178395,3.13959,3185.2,3184.7,0.3139]
[1731976178603,3.13959,3185.2,3184.7,0.673679]
[1731976179406,1.55913331,3188.9,3184.7,0.673679]
[1731976179407,3.13914,3185.6,3184.7,3.813679]
[1731976179739,3.13894,3185.8,3185.2,0.3139]
[1731976179942,3.13875,3186.0,3185.4,0.3139]
[1731976180317,4.28445,3186.4,3185.6,0.3139]
[1731976180520,3.13861,3186.2,3185.6,0.3139]
[1731976180816,3.1387,3186.1,3185.6,0.3139]
[1731976181017,3.1388,3186.0,3185.6,0.3139]
[1731976181320,3.1388,3186.0,3185.4,0.3139]
[1731976181520,3.1388,3186.0,3185.4,0.678179]
[1731976181717,3.13897,3185.8,3185.4,0.3139]
[1731976183603,3.13913,3185.6,3185.4,0.3139]
[1731976183848,3.13913,3185.6,3185.0,0.4533]
[1731976184407,2.82522,3185.7,3185.0,0.4533]
[1731976184620,3.13893,3185.8,3185.1,3.45348]
[1731976185359,3.13915,3185.6,3185.1,0.3139]
[1731976187370,3.13939,3185.4,3185.1,0.3139]
[1731976187535,3.13948,3185.3,3184.8,0.3139]
[1731976187742,3.13932,3185.4,3184.8,0.3139]
[1731976187961,3.13961,3185.2,3184.8,0.3139]
[1731976188263,3.13928,3185.5,3184.8,0.3139]
[1731976188477,3.13909,3185.7,3185.1,0.3139]
[1731976188657,3.13913,3185.6,3185.1,0.3139]
[1731976190134,3.13875,3186.0,3185.3,0.3139]
[1731976190337,3.13875,3186.0,3185.5,0.3139]
[1731976190558,4.27545,3186.3,3185.7,0.3139]
[1731976190940,3.13845,3186.3,3185.7,0.3139]
[1731976191329,4.27506,3186.7,3185.7,3.45284]
[1731976191525,3.13835,3186.4,3185.7,3.45284]
[1731976191977,0.427506,3186.6,3185.8,0.3139]
[1731976192264,3.13853,3186.2,3185.8,0.3139]
[1731976193049,3.13853,3186.2,3185.7,0.3139]
[1731976194071,3.13864,3186.1,3185.6,0.3137]
[1731976195061,3.13864,3186.1,3185.5,0.3137]
[1731976195222,3.13864,3186.1,3185.7,0.3137]
[1731976196127,3.13864,3186.1,3185.5,3.45292]
[1731976196440,3.13845,3186.3,3185.7,3.4527]
[1731976196653,3.13845,3186.3,3185.7,0.3137]
[1731976197478,3.13826,3186.5,3185.9,3.45252]
[1731976197681,4.27505,3186.7,3186.1,0.3137]
[1731976197880,3.13805,3186.7,3186.1,0.3137]
[1731976198334,3.13817,3186.6,3186.1,0.3137]
[1731976198782,3.13817,3186.6,3186.0,0.3137]
[1731976200001,3.13817,3186.6,3185.9,3.13881]
[1731976200002,3.13835,3186.4,3185.8,0.3137]
[1731976200321,3.13833,3186.4,3185.8,3.45259]
[1731976200605,3.13864,3186.1,3185.8,0.3137]
[1731976200818,3.13864,3186.1,3185.4,0.3137]
[1731976201309,3.13868,3186.1,3185.4,0.3137]
[1731976201494,4.03015901,3186.1,3185.4,0.3137]
[1731976201861,3.13868,3186.1,3185.4,0.3137]
[1731976202309,3.13879,3186.0,3185.4,0.3137]
[1731976202509,6.13831,3186.5,3184.5,0.6483887]
[1731976202510,3.13827,3186.5,3185.6,3.13904]
[1731976202676,0.61302393,3186.6,3186.1,0.3137]
[1731976202907,0.85351852,3186.6,3186.1,0.3137]
[1731976203593,3.99165852,3186.6,3186.1,0.3137]
[1731976203768,3.75116393,3186.6,3185.9,0.3137]
[1731976203966,1.06,3186.5,3185.9,0.3137]
[1731976204291,3.13898,3185.8,3185.3,0.3137]
[1731976204495,3.2160923,3186.0,3185.3,0.3137]
[1731976204711,3.13884,3185.9,3185.3,3.45311]
[1731976205608,3.13824,3186.5,3185.9,0.3137]
[1731976205908,0.48189639,3186.4,3185.9,3.45251]
[1731976206112,1.0677,3186.6,3186.1,0.3137]
[1731976206404,4.20923,3187.0,3186.5,0.3137]
[1731976206613,0.62565525,3186.9,3186.5,0.3137]
[1731976207022,4.20915,3187.0,3186.5,0.3137]
[1731976207531,4.20915,3187.0,3186.4,0.3137]
[1731976207931,0.0772823,3186.9,3186.4,0.3137]
[1731976208098,3.13799,3186.8,3186.4,0.3137]
[1731976208300,0.627589,3186.7,3186.4,0.3137]
[1731976208495,3.13799,3186.8,3186.2,0.3137]
[1731976208699,0.0772823,3186.7,3186.2,0.3137]
[1731976209004,3.13835,3186.4,3186.2,0.3137]
[1731976209330,1.0714,3187.0,3186.2,0.3137]
[1731976209331,3.2154323,3186.6,3186.2,0.3137]
[1731976209539,0.55,3186.5,3186.0,0.3137]
[1731976209832,4.20951,3186.7,3186.0,3.45235]
[1731976210500,1.0714,3186.7,3186.2,0.3137]
[1731976210705,0.48292835,3186.9,3186.2,3.45222]
[1731976210892,3.13774,3187.0,3186.5,0.3137]
[1731976211733,3.13774,3187.0,3186.4,3.16432]
[1731976211936,3.13774,3187.0,3186.5,0.3137]
[1731976212243,3.13774,3187.0,3186.3,0.3137]
[1731976212429,3.1382,3186.6,3186.3,0.3137]
[1731976212942,0.49066158,3186.9,3186.3,0.3137]
[1731976213149,3.13776,3187.0,3186.4,3.13833]
[1731976213447,3.13776,3187.0,3186.5,0.3137]
[1731976216275,3.13738,3187.4,3186.9,0.3137]
[1731976216474,7.23235,3187.5,3186.9,3.45153]
[1731976216678,0.723235,3187.4,3186.9,3.45153]
[1731976216860,0.723235,3187.4,3186.9,0.3137]
[1731976217390,3.13708,3187.7,3187.0,0.3137]
[1731976217688,3.13715,3187.6,3187.0,3.45139]
[1731976218055,4.19892,3187.8,3187.0,3.45139]
[1731976218256,4.19892,3187.8,3187.2,0.3137]
[1731976218441,0.3137,3188.2,3187.6,3.45078]
[1731976218637,0.658708,3188.2,3187.6,3.45078]
[1731976218881,1.29806023,3188.2,3187.9,0.3137]
[1731976219071,0.98436023,3188.2,3187.9,0.3137]
[1731976219269,0.63935223,3188.2,3187.9,3.45055]
[1731976219479,1.155,3188.8,3188.1,3.13658]
[1731976219766,1.155,3188.8,3188.2,0.3137]
[1731976219971,0.18627843,3188.7,3188.2,0.3137]
[1731976220167,3.13646,3188.3,3187.5,0.026]
[1731976220376,0.0772823,3188.4,3187.5,0.026]
[1731976220593,4.29127,3188.5,3187.8,3.13694]
[1731976220741,0.979127,3188.4,3187.8,3.13694]
[1731976221096,3.32236843,3188.7,3187.7,3.45075]
[1731976221244,3.39965073,3188.7,3187.7,3.45075]
[1731976221444,0.18627843,3188.7,3188.4,0.3137]
[1731976221887,0.63050197,3188.9,3188.4,0.3137]
[1731976222220,3.13627,3188.5,3188.4,0.3137]
[1731976222523,0.0772823,3188.6,3187.8,0.3397]
[1731976222823,0.55,3188.5,3188.0,0.3137]
[1731976223013,0.63050197,3188.9,3188.2,0.3137]
[1731976223173,0.63050197,3188.9,3188.2,3.45019]
[1731976223374,3.13614,3188.7,3188.2,0.3137]
[1731976223621,3.2135323,3188.6,3188.2,0.3137]
[1731976224068,3.13638,3188.4,3188.0,0.3137]
[1731976224271,0.0772823,3188.3,3188.0,0.3137]
[1731976224699,0.63499123,3188.4,3188.0,0.3137]
[1731976224968,0.55,3188.8,3188.2,0.3137]
[1731976225172,3.13579,3189.0,3188.4,0.3137]
[1731976225371,3.13624,3188.6,3188.4,0.3137]
[1731976225569,0.0772823,3188.5,3188.4,0.3137]
[1731976226025,3.13624,3188.6,3188.4,0.3137]
[1731976226200,0.3909063,3188.5,3188.0,3.45038]
[1731976226406,3.13597,3188.8,3188.2,0.3137]
[1731976226704,3.13625,3188.6,3188.2,0.3137]
[1731976226905,3.2135523,3188.5,3188.2,0.3137]
[1731976227108,3.13627,3188.5,3188.2,0.3137]
[1731976227421,3.13611,3188.7,3188.3,0.3137]
[1731976227922,3.13614,3188.7,3188.3,0.3137]
[1731976228482,3.1362,3188.6,3188.1,0.3137]
[1731976228821,3.2135523,3188.5,3188.1,0.3137]
[1731976229022,0.0772823,3188.5,3188.1,0.3137]
[1731976229347,0.0772823,3188.7,3188.1,0.3137]
[1731976229554,3.13678,3188.0,3187.7,0.3137]
[1731976229757,3.5278203,3187.9,3187.7,0.3137]
[1731976229944,3.1641423,3187.9,3187.7,0.3137]
[1731976230142,3.13695,3187.8,3187.7,0.3137]
[1731976230349,3.68681,3188.0,3187.7,0.3137]
[1731976230515,3.13675,3188.1,3187.5,0.3137]
[1731976230718,0.55,3188.0,3187.5,0.3137]
[1731976231014,3.68676,3188.0,3187.5,0.3137]
[1731976231629,3.63676,3188.0,3187.5,0.3137]
[1731976231952,0.313666,3188.1,3187.6,0.3137]
[1731976232153,0.313666,3188.1,3187.6,3.45076]
[1731976232667,0.313666,3188.1,3187.6,0.3137]
[1731976232958,1.1249,3187.8,3187.1,0.3137]
[1731976233121,3.13715,3187.6,3187.1,0.3137]
[1731976233313,3.13745,3187.3,3187.1,0.3137]
[1731976233543,0.0272823,3187.2,3187.1,0.3137]
[1731976233856,0.0272823,3187.2,3186.8,0.3137]
[1731976234043,3.13756,3187.2,3186.8,0.3137]
[1731976234240,0.627501,3187.2,3186.8,0.3137]
[1731976234550,3.13745,3187.3,3186.8,0.3137]
[1731976234756,0.55,3187.1,3186.8,0.3137]
[1731976234917,3.68784,3186.9,3186.8,0.3137]
[1731976235442,0.55,3186.9,3186.8,0.3137]
[1731976235942,1.1348,3187.2,3186.6,0.3137]
[1731976236148,0.01,3187.9,3186.1,0.08876698]
[1731976236149,3.13713,3187.7,3187.0,0.3137]
[1731976236441,3.564133,3187.6,3187.0,3.45144]
[1731976236624,3.564133,3187.6,3187.0,0.3137]
[1731976237166,3.5914153,3187.6,3187.0,0.3137]
[1731976237674,3.13713,3187.7,3187.1,0.3137]
[1731976237675,0.55,3187.7,3187.1,0.3137]
[1731976237830,3.13667,3188.1,3187.4,0.3137]
[1731976238168,1.76245125,3188.2,3187.6,3.45084]
[1731976238169,1.1455,3188.2,3187.6,3.45084]
[1731976238370,0.0272823,3188.3,3187.9,0.3137]
[1731976238572,3.13637,3188.4,3187.9,0.3137]
[1731976238772,1.2013823,3188.5,3187.9,0.3137]
[1731976239069,3.13654,3188.3,3187.9,0.3137]
[1731976239265,0.313654,3188.2,3187.9,0.3137]
[1731976239429,0.313654,3188.2,3187.7,0.3137]
[1731976239826,3.450224,3188.2,3187.7,0.3137]
[1731976240025,3.68695,3187.8,3187.7,0.3137]
[1731976240246,3.7142323,3187.8,3187.7,0.3137]
[1731976240544,0.55,3187.7,3187.3,0.3137]
[1731976240757,3.13667,3188.1,3187.3,0.3137]
[1731976240952,3.1637523,3188.3,3187.5,0.3137]
[1731976241169,3.13656,3188.2,3187.7,0.3137]
[1731976241407,3.1639523,3188.1,3187.7,0.3137]
[1731976242266,3.1639423,3188.1,3187.5,0.3137]
[1731976242473,3.13695,3187.9,3187.5,0.3137]
[1731976242964,3.13696,3187.8,3187.5,0.3137]
[1731976243169,3.13696,3187.8,3187.3,0.3137]
[1731976243560,0.55,3187.6,3187.3,0.3137]
[1731976244255,4.63546423,3188.0,3187.3,3.45112]
[1731976244456,0.0272823,3187.9,3187.3,3.45112]
[1731976244640,0.49355695,3187.9,3187.3,0.3137]
[1731976244845,3.68714,3187.7,3187.3,0.3137]
[1731976245950,0.31639423,3188.0,3187.5,0.3137]
[1731976246151,3.13683,3188.0,3187.5,0.3137]
[1731976246330,3.1638523,3188.2,3187.5,0.3137]
[1731976246845,3.1637523,3188.3,3187.8,0.3137]
[1731976247075,3.1366,3188.2,3187.8,0.3137]
[1731976247257,4.12795327,3188.3,3187.8,0.3137]
[1731976247747,4.12795327,3188.3,3187.7,0.3584]
[1731976248770,0.99148327,3188.3,3187.7,3.49543]
[1731976248972,3.55,3188.5,3188.0,0.3137]
[1731976249157,3.13638,3188.4,3188.0,0.3137]
[1731976249530,3.13638,3188.4,3187.8,0.3137]
[1731976249737,3.13647,3188.3,3187.8,0.3137]
[1731976251480,0.55,3188.6,3188.1,0.3137]
[1731976251771,3.68618,3188.6,3188.1,0.3137]
[1731976252005,3.13627,3188.5,3188.1,0.3137]
[1731976252221,3.88488898,3188.5,3188.1,0.3137]
[1731976252365,0.55,3188.2,3187.7,0.3137]
[1731976252567,3.13666,3188.1,3187.7,0.3137]
[1731976253008,3.7138323,3188.3,3187.7,0.3137]
[1731976253221,3.82159423,3188.2,3187.7,0.3137]
[1731976253505,3.82159423,3188.2,3187.6,0.3137]
[1731976254510,3.50779423,3188.2,3187.5,3.13722]
[1731976254780,3.13667,3188.1,3187.6,0.3137]
[1731976255986,0.37122423,3188.2,3187.5,3.13724]
[1731976255987,0.37122423,3188.2,3187.7,0.3137]
[1731976256309,0.40850465,3188.1,3187.7,0.3137]
[1731976256876,3.13695,3187.8,3187.7,0.3137]
[1731976257074,3.13709,3187.7,3187.2,0.3137]
[1731976257313,3.1643723,3187.7,3187.2,0.3137]
[1731976257485,3.13717,3187.6,3187.2,0.3137]
[1731976257688,3.76731023,3187.6,3187.2,0.3137]
[1731976257907,3.13745,3187.3,3187.2,0.3137]
[1731976258275,3.7147323,3187.3,3187.2,0.3137]
[1731976258698,6.7147323,3187.3,3187.2,0.3137]
[1731976258903,6.68745,3187.3,3187.2,0.3137]
[1731976259102,3.13796,3186.8,3186.3,0.3137]
[1731976259307,0.0272823,3186.7,3186.3,0.3137]
[1731976259728,3.13796,3186.8,3186.3,0.3137]
[1731976260108,3.13796,3186.8,3186.1,3.13858]
[1731976260109,3.13796,3186.8,3186.2,0.3137]
[1731976260517,0.55,3186.8,3186.4,0.3137]
[1731976260707,3.68802,3186.8,3186.4,0.3137]
[1731976260917,3.13806,3186.7,3186.4,0.3137]
[1731976261102,3.68802,3186.8,3186.4,0.3137]
[1731976261840,3.68802,3186.8,3186.2,0.3137]
[1731976262042,3.13812,3186.7,3186.2,0.3137]
[1731976262357,3.13815,3186.6,3186.2,0.3137]
[1731976262643,4.28383,3186.3,3185.5,0.3137]
[1731976262811,3.1658823,3186.2,3185.5,3.45292]
[1731976263015,0.0272823,3186.2,3185.5,3.45292]
[1731976263256,4.28383,3186.3,3185.5,3.45292]
[1731976263257,3.13863,3186.1,3185.5,3.45292]
[1731976263598,3.13863,3186.1,3185.5,0.3137]
[1731976264043,3.13853,3186.2,3185.6,0.3137]
[1731976264267,3.13864,3186.1,3185.6,0.3137]
[1731976264744,3.13895,3185.8,3185.6,0.3137]
[1731976265061,3.13925,3185.5,3185.3,0.3137]
[1731976265236,3.1666023,3185.4,3185.3,0.3137]
[1731976265422,3.14,3184.8,3184.4,0.3137]
[1731976265601,3.13975,3185.0,3184.4,0.3137]
[1731976265602,0.55,3184.6,3184.4,0.3137]
[1731976265802,3.14021,3184.5,3184.4,0.3137]
[1731976266223,0.55,3184.6,3184.1,0.3137]
[1731976266972,3.69012,3184.6,3184.1,0.3137]
[1731976267154,3.14012,3184.6,3184.1,0.3137]
[1731976267356,3.14012,3184.6,3183.9,0.3137]
[1731976267573,3.14049,3184.3,3183.9,0.3137]
[1731976267779,0.0272823,3184.2,3183.9,0.3137]
[1731976267927,3.1407,3184.0,3183.9,0.3137]
[1731976268447,4.2835,3184.0,3183.4,0.3137]
[1731976268663,3.1680923,3183.9,3183.4,0.3137]
[1731976269237,3.59918153,3183.9,3183.4,0.3137]
[1731976269572,3.59918153,3183.9,3182.9,3.14176]
[1731976269573,6.37712,3183.8,3182.9,3.14176]
[1731976269767,6.37712,3183.8,3182.7,3.14196]
[1731976269768,3.1683123,3183.7,3183.0,3.14165]
[1731976270532,0.55,3183.6,3182.6,3.142]
[1731976270744,3.1685223,3183.5,3182.6,3.142]
[1731976271686,3.1685223,3183.5,3182.0,0.3137]
[1731976271687,1.1165,3183.4,3182.2,3.14247]
[1731976271898,6.14171,3183.0,3182.2,3.14247]
[1731976272195,0.0272823,3182.9,3182.0,3.14267]
[1731976272350,6.755881,3183.0,3182.3,3.14237]
[1731976272752,6.755881,3183.0,3181.9,3.14272]
[1731976272753,3.14192,3182.8,3181.9,3.14272]
[1731976272963,0.0272823,3182.7,3182.0,3.14264]
[1731976273373,1.54790153,3182.7,3182.0,3.14264]
[1731976273902,1.54790153,3182.7,3181.7,3.14288]
[1731976273903,0.55,3182.4,3181.7,3.14288]
[1731976274076,0.5772823,3182.4,3181.8,3.14283]
[1731976274256,1.1365,3182.3,3181.5,3.14316]
[1731976274761,0.5772823,3182.2,3181.5,3.14316]
[1731976274964,1.36288953,3182.2,3181.5,3.14316]
[1731976276064,1.36288953,3182.2,3181.5,3.14312]
[1731976276263,1.0656,3182.8,3181.6,0.06286393]
[1731976276574,0.01,3183.5,3182.3,3.14237]
[1731976276575,1.0484,3183.3,3182.3,3.14237]
[1731976276780,1.0756823,3183.3,3182.5,3.14209]
[1731976277109,1.0484,3183.3,3182.5,3.14209]
[1731976277310,0.0272823,3183.2,3182.5,3.14209]
[1731976277476,1.0484,3183.3,3182.4,3.456507]
[1731976277679,1.51713922,3183.3,3182.6,3.14202]
[1731976277879,0.55,3183.2,3182.7,3.14196]
[1731976278089,3.63899222,3183.4,3182.4,3.456477]
[1731976278090,1.1417,3183.7,3182.5,3.15218]
[1731976278418,1.1417,3184.1,3183.4,3.14129]
[1731976278567,1.1689823,3184.1,3183.6,3.14103]
[1731976278770,1.1417,3184.1,3183.6,3.14103]
[1731976279190,1.1417,3184.1,3183.7,3.14092]
[1731976279387,1.1417,3184.1,3183.6,3.14103]
[1731976279815,1.1417,3184.1,3183.9,3.14078]
[1731976280308,4.107,3184.5,3184.0,3.14069]
[1731976280471,1.107,3184.5,3184.0,3.14064]
[1731976280667,1.107,3184.5,3183.5,0.06281651]
[1731976280907,1.107,3184.5,3184.0,3.1407]
[1731976281117,1.72119379,3184.5,3183.8,3.14088]
[1731976281271,3.0272823,3184.4,3183.8,3.14088]
[1731976281672,6.1675823,3184.4,3183.7,3.14097]
[1731976282060,4.53515213,3184.4,3184.0,3.14061]
[1731976282254,1.72119379,3184.5,3184.0,3.14061]
[1731976282459,1.72119379,3184.5,3184.1,3.14057]
[1731976282760,1.72119379,3184.5,3183.9,3.14072]
[1731976282963,1.72119379,3184.5,3183.8,3.14089]
[1731976283252,0.5772823,3184.4,3183.6,3.14109]
[1731976283609,3.7176123,3184.4,3183.6,3.14109]
[1731976283952,3.7176123,3184.4,3183.4,3.14127]
[1731976284252,3.5772823,3184.4,3183.4,3.14127]
[1731976284413,1.1262,3184.0,3183.2,0.3137]
[1731976284612,3.0,3183.7,3183.2,0.3137]
[1731976284852,0.0272823,3183.6,3183.2,0.3137]
[1731976285067,4.26087,3183.5,3183.2,0.3137]
[1731976285368,3.69139,3183.3,3183.2,0.3137]
[1731976285529,3.69139,3183.3,3181.4,0.01]
[1731976285530,0.55,3183.2,3182.6,0.3137]
[1731976285754,0.0272823,3183.1,3182.6,0.3137]
[1731976285959,3.1418,3182.9,3182.6,0.3137]
[1731976286137,3.0,3182.8,3182.6,0.3137]
[1731976286338,1.0688,3182.7,3182.6,0.3137]
[1731976286583,1.0688,3182.7,3182.2,0.3137]
[1731976286738,3.0,3182.5,3182.2,0.3137]
[1731976286939,1.105,3183.0,3182.4,0.3137]
[1731976287138,1.1322823,3183.0,3182.4,3.45596]
[1731976288090,3.14208,3182.6,3182.5,0.3137]
[1731976288291,6.7193623,3182.6,3182.5,0.3137]
[1731976288580,6.69208,3182.6,3182.5,0.3137]
[1731976289003,3.69221,3182.5,3181.8,0.3137]
[1731976289143,3.1695623,3182.4,3181.8,0.3137]
[1731976289343,0.0272823,3182.4,3181.9,0.3137]
[1731976289639,3.1423,3182.4,3181.9,0.3137]
[1731976289867,3.56817028,3182.4,3181.9,0.3137]